[Event "ITT 1st Parada Jamundi 2022"]
[Site "Jamundi Valle"]
[Date "2022.12.09"]
[Round "6.12"]
[White "Lopez Rayo, Isabella"]
[Black "Gonzalez Velasco, Leandro"]
[Result "0-1"]
[ECO "B63"]
[WhiteElo "1898"]
[BlackElo "1915"]
[Annotator "TA"]
[PlyCount "74"]
[EventDate "2022.12.05"]
[EventType "swiss"]
[EventCountry "COL"]
[SourceTitle "playchess.com"]
[Source "ChessBase"]
[SourceQuality "1"]
[TimeControl "5400+30"]

{[%evp 20,74,12,-40,77,61,89,44,74,72,76,76,88,-39,-41,-20,26,-75,-68,-60,-76,-154,-39,-65,-54,-723,-723,-697,-685,-716,-322,-319,-344,-352,-345,-388,-394,-399,-382,-366,-187,-275,-276,-300,-294,-402,-385,-439,-425,-567,-560,-564,-572,-585,-583,-484,-479]} 1. e4 {[%emt 0:02:49]} c5 {[%emt 0:00:20]} 2. Nf3 {[%emt 0:00:17]} d6 {[%emt 0:00:05]} 3. d4 {[%emt 0:00:58]} cxd4 {[%emt 0:00:04]} 4. Nxd4 {[%emt 0:00:08]} Nf6 {[%emt 0:00:05]} 5. Nc3 {[%emt 0:00:06]} Nc6 {[%emt 0:00:05]} 6. Bg5 {[%emt 0:01:52]} e6 {[%emt 0:00:26]} 7. Qd2 {[%emt 0:00:58]} Be7 {[%emt 0:00:59]} 8. O-O-O {[%emt 0:01:26]} O-O {[%emt 0:00:11]} 9. Nb3 {[%emt 0:03:29]} Qb6 {[%emt 0:04:34]} 10. f3 {[%emt 0:05:42]} Rd8 {[%emt 0:01:16]} 11. h4 {[%emt 0:19:26]} (11. Kb1 $11) 11... Rd7 {[%emt 0:11:32] [#] B63: Sicilian: Richter-Rauzer: 7...Be7 and unusual Black 7th moves.} (11... d5 $15 {keeps the upper hand.}) 12. Bd3 $146 {[%emt 0:11:42]} ({Predecessor:} 12. g4 Qd8 13. Bd3 d5 14. Bxf6 Bxf6 15. exd5 Bxc3 16. Qxc3 exd5 17. Bb5 Rd6 18. Bxc6 bxc6 19. Qd4 {1-0 (36) Arzumanyan,S-Akopov,R USSR 1990}) 12... Qd8 {[%emt 0:08:34]} 13. h5 {[%emt 0:03:59]} a6 {[%emt 0:07:31] White is slightly better.} 14. g4 {[%emt 0:04:16]} Ne5 {[%emt 0:07:20]} 15. Qg2 {[%emt 0:04:39]} b5 {[%emt 0:12:38][%cal Bb7b5,Bb5c4][%mdl 32]} 16. Bxf6 {[%emt 0:01:01]} (16. Be3 $1 $16) 16... Bxf6 {[%emt 0:00:09]} (16... Nxd3+ {simplifies} 17. Rxd3 Bxf6 18. f4 a5) 17. f4 {[%emt 0:00:14]} Nc4 {[%emt 0:10:50]} (17... Nxd3+ $142 18. Rxd3 b4) 18. Bxc4 {[%emt 0:00:59]} (18. e5 $1 $11 Bb7 19. Be4) 18... bxc4 $17 {[%emt 0:00:12]} 19. Nd4 {[%emt 0:04:40]} Qb6 $1 $36 {[%emt 0:06:06][%mdl 2048] Prevents g5. Black is in control.} 20. Nde2 {[%emt 0:10:12]} (20. Qd2 $142) 20... Qe3+ {[%emt 0:04:54]} ({Better is} 20... Rb8 $1 $17 21. g5 Qxb2+ 22. Kd2 Bxc3+ 23. Nxc3 d5 24. exd5 Bb7) 21. Kb1 {[%emt 0:01:10]} Rb8 {[%emt 0:08:21][%cal Ba8b8,Bb8b2,Bb2c2][%mdl 32] Against g5. Black is more active.} 22. Rh3 $2 {[%emt 0:05:35][%mdl 8192] [#] Loses the game.} ({Don't go for} 22. Qg1 $2 Rxb2+ $3 {[%mdl 512]} 23. Ka1 (23. Kxb2 $2 {loses.} Bxc3+ 24. Ka3 Qxe2 $19) 23... Qxg1 24. Rhxg1 Rxc2 $19) (22. Qh3 $15 Qb6 23. b3) 22... Rxb2+ $3 $19 {[%emt 0:06:59][%mdl 512]} 23. Ka1 {[%emt 0:00:46]} Qb6 {[%emt 0:00:20]} 24. Qg1 {[%emt 0:07:19]} Qxg1 {[%emt 0:01:03]} (24... Qb4 $142 {( -> ...Rb7)} 25. Qe3 Qa3) 25. Rxg1 {[%emt 0:00:07]} Rxc2 {[%emt 0:01:09]} 26. Kb1 {[%emt 0:00:26]} Rd2 {[%emt 0:00:14] Hoping for ...Rb7+.} 27. Kc1 {[%emt 0:01:57]} Rd3 {[%emt 0:00:37]} 28. Rhg3 {[%emt 0:01:00]} Rxg3 {[%emt 0:03:26]} 29. Rxg3 {[%emt 0:00:04]} Bxc3 {[%emt 0:01:03]} (29... d5 $142 {Threatens to win with ...d4.} 30. e5 Bh4) 30. Nxc3 {[%emt 0:00:02][%mdl 4096] Endgame KRB-KRN} (30. Rxc3 $142 d5 31. e5) 30... d5 {[%emt 0:00:11]} 31. exd5 {[%emt 0:00:28]} exd5 {[%emt 0:00:11]} 32. Re3 {[%emt 0:00:08][%cal Re3e8]} Kf8 {[%emt 0:00:11] Against Re8+. aiming for ...d4.} 33. Re5 {[%emt 0:00:20]} Bb7 {[%emt 0:01:57] Black is clearly winning.} 34. Na4 {[%emt 0:00:07]} Re7 {[%emt 0:00:11]} 35. Rf5 {[%emt 0:00:20]} g6 {[%emt 0:01:07]} 36. hxg6 {[%emt 0:00:06]} hxg6 {[%emt 0:00:05]} 37. Rf6 {[%emt 0:00:03]} Re6 {[%emt 0:00:11] Weighted Error Value: White=0.59/Black=0.43} 0-1

[Event "ITT 1st Parada Jamundi 2022"]
[Site "Jamundi Valle"]
[Date "2022.12.09"]
[Round "6.13"]
[White "Londono Lopez, Donaldo"]
[Black "Pazos Gambarrotti, Plinio"]
[Result "1-0"]
[ECO "C63"]
[WhiteElo "2055"]
[BlackElo "2083"]
[Annotator "TA"]
[PlyCount "87"]
[EventDate "2022.12.05"]
[EventType "swiss"]
[EventCountry "COL"]
[SourceTitle "playchess.com"]
[Source "ChessBase"]
[SourceQuality "1"]
[TimeControl "5400+30"]

{[%evp 10,87,77,59,87,70,77,75,69,67,81,75,70,69,65,3,55,49,78,72,129,135,321,335,631,634,870,30,32,29,36,38,33,34,34,38,22,25,25,7,17,27,31,30,25,24,34,31,64,68,58,25,51,34,32,32,34,18,22,22,11,9,16,8,58,40,123,120,245,172,558,431,846,844,792,706,12846,5608,4714,4614]} 1. e4 {[%emt 0:02:41]} e5 {[%emt 0:00:13]} 2. Nf3 {[%emt 0:00:18]} Nc6 {[%emt 0:00:02]} 3. Bb5 {[%emt 0:00:15]} f5 {[%emt 0:00:06]} 4. Nc3 {[%emt 0:00:16]} Nf6 {[%emt 0:00:02]} 5. exf5 {[%emt 0:00:19]} e4 {[%emt 0:00:07]} 6. Nh4 {[%emt 0:00:10]} (6. Ng5 {with more complications.} d5 7. d3 h6 8. Ne6) 6... Nd4 {[%emt 0:00:17] C63: Ruy Lopez: Schliemann/Jaenisch Defence.} 7. Ba4 {[%emt 0:03:39]} c6 {[%emt 0:01:51]} 8. d3 {[%emt 1:26:52]} d5 {[%emt 1:31:52] White is better.} 9. dxe4 {[%emt 0:00:00]} dxe4 {[%emt 0:00:00] [#]} 10. O-O $146 {[%emt 0:00:00]} (10. Bg5 {looks sharper.} Be7 11. Bb3 Nxf5 12. O-O) ({Predecessor:} 10. Be3 Nxf5 11. Qxd8+ Kxd8 12. O-O-O+ Kc7 13. Bg5 Bd6 14. Rhe1 Nxh4 15. Bxh4 b5 16. Bb3 {1-0 (26) Binham,T (2285)-Meister,J (2441) Dresden 2022}) 10... Nxf5 {[%emt 0:00:00]} 11. Nxf5 {[%emt 0:00:00]} Bxf5 {[%emt 0:00:00]} 12. Qe2 {[%emt 0:00:00]} (12. Bf4 $14) 12... Qa5 {[%emt 0:00:00]} (12... Bd6 $11) 13. Rd1 $14 {[%emt 0:00:00]} Bc5 {[%emt 0:00:00]} 14. Bb3 {[%emt 0:00:00]} Rf8 {[%emt 0:00:00]} (14... Bg4 15. Qc4 Bxf2+ 16. Kxf2) (14... Qc7) (14... Bg4 $2 15. Qc4 $1 Bxf2+ 16. Kxf2 $18) (14... Qc7 $142) 15. h3 $1 $16 {[%emt 0:00:00]} Nd7 $2 {[%emt 0:00:00]} (15... Rd8) (15... Qc7 $16) 16. Bg5 $18 {[%emt 0:00:00]} (16. Nxe4 O-O-O) ({Much less strong is} 16. Nxe4 $6 O-O-O $18) 16... Qc7 $2 {[%emt 0:00:00]} (16... Bb6 17. Nxe4 Bxe4) (16... Bb6 17. Nxe4 Bxe4) 17. Nxe4 {[%emt 0:00:00][%csl Gd1][%cal Re4d6]} Qe5 {[%emt 0:00:00] [#]} 18. Ng3 {[%emt 0:00:00]} (18. Qh5+ Bg6 19. Qg4 Bf5) (18. Rxd7 Bxd7 19. Re1) ({Less strong is} 18. Qh5+ Bg6 19. Qg4 Bf5 $16) (18. Rxd7 $1 $18 {[%mdl 512]} Bxd7 19. Re1) 18... Qxe2 $11 {[%emt 0:00:00]} 19. Nxe2 {[%emt 0:00:00] Re1 is the strong threat.} Bxc2 $1 {[%emt 0:00:00][%mdl 64]} 20. Bxc2 {[%emt 0:00:00]} Rxf2 {[%emt 0:00:00] [#]} 21. Kh1 $1 {[%emt 0:00:00]} Rxe2 {[%emt 0:00:00]} 22. Bxh7 {[%emt 0:00:00] Strongly threatening Bg6+. This pair of bishops is nice.} Nf6 {[%emt 0:00:00]} 23. Bg6+ {[%emt 0:00:00]} Kf8 {[%emt 0:00:00]} 24. Rac1 {[%emt 0:00:00]} Be7 {[%emt 0:00:00]} 25. Rc2 {[%emt 0:00:00]} Rxc2 {[%emt 0:00:00]} 26. Bxc2 {[%emt 0:00:00]} Nd5 {[%emt 0:00:00]} 27. Rf1+ {[%emt 0:00:00]} Bf6 {[%emt 0:00:00]} 28. Bxf6 {[%emt 0:00:00]} Nxf6 $14 {[%emt 0:00:00][%mdl 4096] Endgame KRB-KRN} 29. g4 {[%emt 0:00:00] White is more active.} Ke7 {[%emt 0:00:00]} 30. Kg2 {[%emt 0:00:00]} Nd5 {[%emt 0:00:00]} 31. Kg3 {[%emt 0:00:00]} g5 $1 {[%emt 0:00:00]} 32. Rf5 {[%emt 0:00:00]} Rg8 {[%emt 0:00:00]} 33. Bb3 {[%emt 0:00:00]} Ke6 {[%emt 0:00:00]} 34. h4 {[%emt 0:00:00]} gxh4+ {[%emt 0:00:00]} 35. Kxh4 {[%emt 0:00:00]} b5 {[%emt 0:00:00]} 36. Rh5 {[%emt 0:00:00]} Kd6 {[%emt 0:00:00]} ({Better is} 36... a5 $11) 37. Rh6+ {[%emt 0:00:00]} Kc5 {[%emt 0:00:00]} ({Black should play} 37... Ke5 $1 $14) 38. g5 $16 {[%emt 0:00:00][%cal Bg4g5,Bg5g6,Bg6g7][%mdl 32]} Re8 {[%emt 0:00:00] [#]} (38... a5 $16) 39. g6 $1 $18 {[%emt 0:01:59] And now g7 would win.} Re1 $2 {[%emt 0:00:00]} (39... Re4+ {is a better chance.} 40. Kg5 Re5+ 41. Kg4 Re2) 40. Rh5 {[%emt 0:01:55] Hoping for Bxd5. White is clearly winning.} Kd6 {[%emt 0:00:00]} (40... Re4+ 41. Kg3 Re7) (40... Rh1+ $142 41. Kg5 Rxh5+ 42. Kxh5 Nf4+ 43. Kh6 Nxg6) 41. Bxd5 {[%emt 0:02:12]} cxd5 {[%emt 0:00:00]} 42. g7 {[%emt 0:00:08] Threatens to win with Rg5.} Rh1+ {[%emt 0:00:00]} 43. Kg5 {[%emt 0:00:13]} Rg1+ {[%emt 0:00:00]} 44. Kf6 {[%emt 0:00:36] Weighted Error Value: White=0.26 (precise) /Black=0.60} 1-0

[Event "ITT 1st Parada Jamundi 2022"]
[Site "Jamundi Valle"]
[Date "2022.12.09"]
[Round "6.14"]
[White "Contreras, Camilo Andres"]
[Black "Renteria, Rolando"]
[Result "0-1"]
[ECO "C41"]
[WhiteElo "1848"]
[BlackElo "2046"]
[Annotator "TA"]
[PlyCount "96"]
[EventDate "2022.12.05"]
[EventType "swiss"]
[EventCountry "COL"]
[SourceTitle "playchess.com"]
[Source "ChessBase"]
[SourceQuality "1"]
[TimeControl "5400+30"]

{[%evp 10,96,36,29,20,19,18,0,20,14,12,-3,24,0,0,0,7,-49,-52,-104,-62,-81,-31,-25,8,-1,58,51,128,107,118,101,99,76,251,263,248,256,258,248,281,278,269,275,270,323,519,530,604,394,411,382,514,477,494,225,190,0,0,0,0,-29985,-29986,-29987,-29988,-29988,-29987,-29987,-29988,-29988,-29989,-29989,-29990,-29990,-29991,-29991,-29992,-29994,-29995,-29996,-29995,-29995,-29995,-29995,-29996,-29996,-29997,-29999,-29999]} 1. e4 {[%emt 0:02:37]} e5 {[%emt 0:00:30]} 2. Nf3 {[%emt 0:00:10]} d6 {[%emt 0:00:24]} 3. d4 {[%emt 0:01:32]} Nd7 {[%emt 0:00:07]} 4. Nc3 {[%emt 0:00:18]} c6 {[%emt 0:00:26]} 5. Be3 {[%emt 0:00:34]} Ngf6 {[%emt 0:00:12]} 6. h3 {[%emt 0:00:10]} Be7 {[%emt 0:00:07] C41: Philidor Defence.} 7. a4 {[%emt 0:01:01]} O-O {[%emt 0:00:10]} 8. Be2 {[%emt 0:03:44]} b6 {[%emt 0:00:43][%cal Bb7b6,Bb6b5,Bb5b4][%mdl 32] The position is equal. has lost popularity (8...Re8).} 9. O-O {[%emt 0:00:31]} a6 {[%emt 0:01:15]} 10. g4 {[%emt 0:05:18]} Bb7 {[%emt 0:04:42] [#]} 11. g5 $146 {[%emt 0:02:59]} (11. dxe5 $5 dxe5 12. g5 $11) ({Predecessor:} 11. Qd2 exd4 12. Qxd4 c5 13. Qc4 Nxe4 14. Nd5 Nef6 15. Nxe7+ Qxe7 16. g5 Ne4 17. Rad1 {0-1 (55) Lewandowski,M (2108)-Stepien,M (2111) Ustron 2009}) 11... Ne8 {[%emt 0:00:05]} 12. h4 {[%emt 0:02:18]} b5 {[%emt 0:00:51]} 13. Qd2 {[%emt 0:06:38]} (13. axb5 $11 axb5 14. Rxa8 Qxa8 15. dxe5) 13... b4 $15 {[%emt 0:00:41]} 14. Na2 {[%emt 0:01:06]} (14. Nd1 $15) 14... c5 {[%emt 0:00:58]} 15. d5 {[%emt 0:05:16]} Kh8 {[%emt 0:01:55]} (15... a5 $1 $17 16. Ne1 Nb6) 16. Nh2 {[%emt 0:04:57]} Nc7 {[%emt 0:10:12]} 17. c4 {[%emt 0:07:18]} f6 {[%emt 0:02:58]} (17... bxc3 $1 $11 18. bxc3 f6) 18. Nc1 {[%emt 0:03:41]} g6 {[%emt 0:03:23]} (18... Qe8 $14) 19. Nd3 $1 $16 {[%emt 0:04:45]} f5 {[%emt 0:00:32]} 20. exf5 {[%emt 0:02:55]} gxf5 {[%emt 0:00:20]} 21. f4 {[%emt 0:00:16]} Nb6 $2 {[%emt 0:04:56]} (21... e4 $6 22. Nf2 $11) (21... Qe8 $16) 22. b3 $18 {[%emt 0:00:35]} e4 {[%emt 0:00:57]} 23. Nxb4 {[%emt 0:04:15]} a5 {[%emt 0:20:53]} 24. Na2 {[%emt 0:09:08]} (24. Nc6 Bxc6 25. dxc6 Kg8 $16) 24... Ncxd5 {[%emt 0:00:33]} 25. cxd5 {[%emt 0:00:57]} Nxd5 {[%emt 0:01:52] [#]} 26. Qb2+ $1 {[%emt 0:00:38]} Bf6 {[%emt 0:01:32]} 27. gxf6 {[%emt 0:00:53]} Rg8+ $2 {[%emt 0:00:10]} (27... Rxf6 28. Bd2 Qe7) 28. Kf2 {[%emt 0:01:04]} Nxe3 {[%emt 0:00:28]} 29. Kxe3 {[%emt 0:04:09]} d5 {[%emt 0:00:07] And now ...d4+ would win.} 30. Qe5 {[%emt 0:01:25]} Re8 {[%emt 0:08:34]} 31. Qxf5 {[%emt 0:01:16] Black must now prevent f7.} d4+ {[%emt 0:00:18]} 32. Kd2 {[%emt 0:00:56]} (32. Kf2 $142 d3 33. f7 Qd4+ 34. Kg2 dxe2 35. fxe8=Q+ (35. fxe8=N exf1=B+ 36. Rxf1 Rxe8 $15) 35... Rxe8 36. Rfe1) 32... d3 {[%emt 0:00:20] Threatens to win with ...Qd4.} 33. Bxd3 $2 {[%emt 0:12:31]} Qxd3+ $11 {[%emt 0:01:43]} 34. Kc1 {[%emt 0:00:06]} Bd5 {[%emt 0:19:42] Dancing on a razor blade.} 35. f7 $2 {[%emt 0:01:55][%mdl 8192]} (35. Rf3 $2 Qd4 36. Rc3 c4 $19) (35. Rd1 $11 Qe3+ 36. Rd2 Qe1+ 37. Rd1 Qe3+ 38. Rd2 Qe1+ 39. Rd1 Qe3+) 35... Qe3+ {[%emt 0:00:09] Black mates.} (35... Qxb3 36. Qf6#) 36. Kb1 {[%emt 0:03:34]} Qxb3+ {[%emt 0:00:15]} 37. Kc1 {[%emt 0:00:04]} Qe3+ {[%emt 0:00:08]} (37... Bxf7 $2 38. Qf6+ Kg8 39. Rg1+ (39. Nc3 $2 Ra6 $19) 39... Kf8 40. Nc3 $18) 38. Kc2 {[%emt 0:00:34]} Qd3+ {[%emt 0:05:24]} 39. Kc1 {[%emt 0:00:08]} Qc4+ {[%emt 0:00:40]} 40. Kd1 {[%emt 0:00:17]} Qd4+ {[%emt 0:00:08]} (40... Bxf7 $2 41. Qf6+ Kg8 42. Ke1 $18) 41. Kc2 {[%emt 0:00:39] [#]} Bb3+ $1 {[%emt 0:00:16][%mdl 576]} 42. Kb1 {[%emt 0:01:55] [#]} Bxf7 $1 {[%emt 0:04:24][%mdl 576]} 43. Qxf7 {[%emt 0:01:54]} (43. Qf6+ Qxf6) 43... Rab8+ {[%emt 0:00:34]} (43... Qxa4 44. Qf6+ Kg8 45. Rg1#) 44. Kc1 {[%emt 0:01:05]} Qe3+ {[%emt 0:03:41]} 45. Kc2 {[%emt 0:00:48]} Qd3+ {[%emt 0:00:49]} 46. Kc1 {[%emt 0:00:08]} Qa3+ {[%emt 0:00:25]} 47. Kd1 {[%emt 0:01:45]} Red8+ {[%emt 0:00:05]} ({Stronger than} 47... Qxa4+ 48. Ke2 (48. Ke1 $2 Qd4 $19) 48... Qd4 49. Rab1 $11 (49. Rad1 $2 {leads to mate.} Rb2+ 50. Ke1 Qe3#)) 48. Kc2 {[%emt 0:02:17]} Qd3+ {[%emt 0:04:56] Weighted Error Value: White=0.69/Black=0.31} 0-1

[Event "ITT 1st Parada Jamundi 2022"]
[Site "Jamundi Valle"]
[Date "2022.12.09"]
[Round "6.15"]
[White "Vacca, Leonardo"]
[Black "Garces, Javier"]
[Result "1-0"]
[ECO "B55"]
[WhiteElo "2041"]
[BlackElo "1863"]
[Annotator "TA"]
[PlyCount "65"]
[EventDate "2022.12.05"]
[EventType "swiss"]
[EventCountry "COL"]
[SourceTitle "playchess.com"]
[Source "ChessBase"]
[SourceQuality "1"]
[TimeControl "5400+30"]

{[%evp 9,65,0,7,-4,0,0,31,11,23,10,18,15,61,57,111,14,20,26,91,99,95,95,92,101,100,96,106,47,195,179,178,178,182,177,165,153,169,143,135,156,199,202,203,203,202,189,420,393,522,518,512,512,775,769,1004,992,901,863]} 1. e4 {[%emt 0:03:52]} c5 {[%emt 0:00:08]} 2. Nf3 {[%emt 0:00:09]} d6 {[%emt 0:00:11]} 3. d4 {[%emt 0:00:09]} cxd4 {[%emt 0:00:07]} 4. Nxd4 {[%emt 0:00:17]} Nf6 {[%emt 0:00:14][%cal Bg8f6,Bf6d5,Bd5e3][%mdl 32]} 5. Bd3 {[%emt 0:00:13]} Nc6 {[%emt 0:00:53]} 6. Ne2 {[%emt 0:00:43] B55: Sicilian: 2...d6 3 d4 cxd4 4 Nxd4 Nf6 5 f3.} d5 {[%emt 0:03:56]} 7. exd5 {[%emt 0:00:30]} Nxd5 {[%emt 0:00:36] [#]} 8. O-O $146 {[%emt 0:00:37] White is slightly better.} ({Predecessor:} 8. a3 Bg4 9. h3 Bh5 10. c4 Qa5+ 11. Bd2 Ndb4 12. Be4 O-O-O 13. O-O Qe5 14. Nbc3 {1-0 (26) Borda,L (2120)-Suranyi,P (2147) Budapest 2013}) 8... e6 {[%emt 0:00:57]} 9. a3 {[%emt 0:01:09]} Bc5 {[%emt 0:04:31]} 10. b4 {[%emt 0:02:22]} Bb6 {[%emt 0:00:33]} (10... Be7 $11) 11. Bb2 {[%emt 0:00:12]} Qg5 {[%emt 0:10:01]} (11... O-O $14) 12. Qd2 {[%emt 0:02:43]} ({Better is} 12. Nd2 $16) 12... Ne3 $1 $11 {[%emt 0:06:14][%csl Ge3][%cal Rg5g2]} 13. Ng3 {[%emt 0:00:22]} h6 {[%emt 0:06:20]} 14. Re1 $16 {[%emt 0:00:49]} Ng4 {[%emt 0:00:42] [#]} 15. Ne4 $1 $36 {[%emt 0:02:36][%mdl 2048] Keeping Black busy.} Qxd2 {[%emt 0:03:59]} 16. Nbxd2 {[%emt 0:00:20] Black must now prevent h3.} O-O {[%emt 0:00:15]} 17. Nc4 {[%emt 0:00:51] h3 is the strong threat.} Bd4 {[%emt 0:05:00]} 18. c3 {[%emt 0:01:42] Prevents b5.} (18. Bxd4 $16 Nxd4 19. Rad1) 18... f5 {[%emt 0:04:57] This costs Black the game.} ({Black should try} 18... Nge5 $14 19. Nxe5 Bxe5) 19. cxd4 $18 {[%emt 0:00:56][%cal Bc3d4,Bd4d5,Bd5c6][%mdl 32]} fxe4 {[%emt 0:00:27]} 20. Bxe4 {[%emt 0:00:33] And now d5 would win.} Nxf2 {[%emt 0:01:11]} 21. d5 {[%emt 0:01:16]} Nxe4 {[%emt 0:03:17]} 22. dxc6 {[%emt 0:01:37]} Nf6 {[%emt 0:00:31]} 23. c7 {[%emt 0:03:25]} Nd5 {[%emt 0:04:24]} 24. Be5 {[%emt 0:00:21] White is more active.} b5 {[%emt 0:05:26] [#]} 25. Na5 {[%emt 0:02:42]} a6 {[%emt 0:04:49]} 26. Rac1 {[%emt 0:00:31]} Bd7 {[%emt 0:04:14]} 27. Nb7 {[%emt 0:03:26]} Rfc8 $2 {[%emt 0:04:15]} (27... Ra7 {was worth a try.}) 28. Nc5 {[%emt 0:01:30]} Nb6 {[%emt 0:03:07]} 29. Rcd1 {[%emt 0:01:04] White is clearly winning.} Be8 {[%emt 0:02:18]} 30. Nxe6 {[%emt 0:00:26]} Nc4 {[%emt 0:00:53] Inhibits Rd6.} (30... Bf7 $142 31. Nxg7 Nc4) 31. Rd8 {[%emt 0:01:59]} Nxe5 {[%emt 0:00:54]} 32. Rxe5 {[%emt 0:00:15]} Kf7 {[%emt 0:02:37] [#]} 33. Ng5+ $1 {[%emt 0:00:27][%mdl 512] Weighted Error Value: White=0.13 (very precise) /Black=0.41} 1-0

[Event "ITT 1st Parada Jamundi 2022"]
[Site "Jamundi Valle"]
[Date "2022.12.09"]
[Round "6.16"]
[White "Hernandez Pinzon, Helvert"]
[Black "Simancas Maradei, Miguel Alejand"]
[Result "0-1"]
[ECO "B80"]
[WhiteElo "1835"]
[BlackElo "2027"]
[Annotator "TA"]
[PlyCount "58"]
[EventDate "2022.12.05"]
[EventType "swiss"]
[EventCountry "COL"]
[SourceTitle "playchess.com"]
[Source "ChessBase"]
[SourceQuality "1"]
[TimeControl "5400+30"]

{[%evp 17,58,16,58,8,24,0,9,-30,14,20,12,25,18,0,0,0,22,25,22,0,85,90,106,0,0,-17,0,0,281,-550,-559,-596,-559,-567,-562,-753,-750,-1254,-1254,-29992,-1008,-29993,-944]} 1. e4 {[%emt 0:03:54]} c5 {[%emt 0:01:25]} 2. Nf3 {[%emt 0:00:11]} d6 {[%emt 0:00:12]} 3. d4 {[%emt 0:00:10]} cxd4 {[%emt 0:00:07]} 4. Nxd4 {[%emt 0:00:03]} Nf6 {[%emt 0:00:07]} 5. Nc3 {[%emt 0:00:11]} a6 {[%emt 0:00:07]} 6. Be3 {[%emt 0:00:22]} e6 {[%emt 0:00:16]} 7. f3 {[%emt 0:00:24]} b5 {[%emt 0:00:07]} 8. g4 {[%emt 0:01:03]} Bb7 {[%emt 0:00:10]} 9. Qd2 {[%emt 0:00:29]} Nfd7 {[%emt 0:01:22] 9...Nfd7 is better than 9...h6.} 10. h4 {[%emt 0:05:00] B80: Sicilian Scheveningen: 6 g3 and 6 Be3, including English Attack.} (10. a3 $14) 10... Nb6 {[%emt 1:31:37]} (10... Ne5 $5 {[%cal Rb5b4]}) 11. g5 {[%emt 0:00:45]} N8d7 {[%emt 0:00:00]} 12. Bd3 {[%emt 0:04:10] [#] The position is equal.} d5 $146 {[%emt 0:00:00]} ({Predecessor:} 12... b4 13. Nce2 d5 14. exd5 Bxd5 15. Rf1 Ne5 16. b3 Bd6 17. O-O-O Bb7 18. f4 Nxd3+ 19. Qxd3 {0-1 (51) Marczuk,A (1931)-Korpalski,M (1968) Lazy 2016}) 13. exd5 {[%emt 0:03:01]} Nxd5 {[%emt 0:00:00]} 14. Nxd5 {[%emt 0:00:54]} Bxd5 {[%emt 0:00:00]} 15. Be4 {[%emt 0:00:45]} Bxe4 {[%emt 0:00:00]} 16. fxe4 {[%emt 0:00:07]} Qc7 {[%emt 0:00:00]} 17. O-O-O {[%emt 0:01:04]} Bc5 {[%emt 0:00:00]} 18. h5 {[%emt 0:02:56][%cal Og5g6]} Rc8 {[%emt 0:00:00]} (18... Nb6 $11 {keeps the balance.}) 19. g6 $16 {[%emt 0:04:21]} O-O {[%emt 0:00:00][%cal Bh8f8,Bf8f6,Bf6d6,Bd6d1][%mdl 32]} 20. h6 (20. Bf4 $1 $16 {[%cal Rf4c7]} Bd6 21. Bxd6 Qxd6 22. gxh7+ (22. h6 fxg6 23. hxg7 Rf7 $11) 22... Kxh7 23. Rhg1) 20... fxg6 $11 {[%emt 0:00:00] aiming for ...e5.} (20... hxg6 $2 21. hxg7 Bd6 22. gxf8=N $18) 21. hxg7 {[%emt 0:12:30]} (21. Nxe6 $2 Bxe3 22. Nxc7 Bxd2+ 23. Rxd2 Rxc7 $19) 21... Rf6 {[%emt 0:00:00]} 22. Kb1 {[%emt 0:03:38]} e5 $2 {[%emt 0:00:00][%mdl 8192] [#]} (22... Ne5 $1 $11 {and Black stays safe.}) 23. Nb3 $4 {[%emt 0:10:12][%mdl 8192]} ({Not} 23. Qh2 h5 $11) (23. Nf5 $1 $18 {[%mdl 512] was the only winning move.} gxf5 24. Qh2 $1 (24. Qd5+ Rf7 $17)) 23... Rd6 $19 {[%emt 0:00:00] Prevents Qd5+.} 24. Qe2 {[%emt 0:24:46] Bh6 is the strong threat.} Rxd1+ {[%emt 0:00:00]} ({Worse is} 24... Kxg7 25. Nxc5 Nxc5 26. Rd5 $11) 25. Qxd1 {[%emt 0:00:02] Hoping for Bh6.} Bxe3 {[%emt 0:00:00]} 26. Qd5+ {[%emt 0:00:12]} Kxg7 {[%emt 0:00:00]} 27. Qe6 {[%emt 0:03:00]} Nf8 {[%emt 0:00:00]} 28. Qh3 {[%emt 0:00:17]} Qxc2+ {[%emt 0:00:00]} 29. Ka1 {[%emt 0:00:01] [#]} Bd4 {[%emt 0:00:00] Weighted Error Value: White=1.35/Black=0.30} (29... Bc1 $142 $1 30. Qh6+ Bxh6 31. Nd2 Bxd2 32. a4 Bc1 33. Rxc1 Qxc1+ 34. Ka2 Rc2 35. axb5 Qxb2#) 0-1